Cogmind - Beta 16.1 @@@ ROGUE MODE // 2026.05.03 @ 14:11:47 Player: Stavbearer Result: Destroyed by A1-LYO(R) with Subdweller Laser Performance ------------- Evolutions (0) 0 Regions Visited (3) 600 Robots Destroyed (15) 75 Value Destroyed (473) 473 Prototype IDs (14) 280 Alien Tech Used (0) 0 Bonus (-60) -60 TOTAL SCORE: 1368 Bonus ------- Friendly Fire -60 Cogmind --------- Core Integrity 0/250 Matter 289/300 Energy 196/200 System Corruption 0% Temperature Cool (10) Movement Core (200) Ox3 Location -10/Subcaves Parts ------- > --- POWER (1) -------- Subdweller Power Source > --- PROPULSION (2) --- (None) > --- UTILITY (2) ------ (None) > --- WEAPON (2) ------- Subdweller Laser Barrage Gun > --- INVENTORY (5) ---- Subdweller Power Source Scrap Suit Seismic Detector Peak State ------------ > --- POWER ------------ Ion Engine > --- PROPULSION ------- Wheel Wheel > --- UTILITY ---------- Small Storage Unit Experimental Sensor Array > --- WEAPON ----------- Autogun Autogun > --- INVENTORY -------- Ion Engine Wheel Scrap Suit Seismic Detector Autogun Autogun Rocket Launcher [Rating: 18] Favorites ----------- Power Ion Engine Engine Ion Engine Propulsion Wheel Wheel Wheel Utility Small Storage Unit Device Experimental Sensor Array Storage Small Storage Unit Protection Scrap Shield Weapon Autogun Energy Gun Subdweller Laser Ballistic Gun Autogun Launcher Rocket Launcher Build | -11 -10 -10 -10 ------- Run | Yrd Mat Min Sub Slots Evolved . | . . . . Power . | . . . . Propulsion . | . . . . Utility . | . . . . Weapon . | . . . . Parts Attached 26 | 7 2 1 16 Power 4 | 1 . . 3 Engine 4 | 1 . . 3 Core . | . . . . Reactor . | . . . . Propulsion 7 | 2 . . 5 Treads . | . . . . Leg . | . . . . Wheel 7 | 2 . . 5 Hover . | . . . . Flight . | . . . . Utility 4 | 2 . 1 1 Device 2 | 1 . 1 . Storage 1 | 1 . . . Processor . | . . . . Hackware . | . . . . Protection 1 | . . . 1 Artifact . | . . . . Weapon 11 | 2 2 . 7 Energy Gun 4 | 1 . . 3 Energy Cannon . | . . . . Ballistic Gun 6 | 1 2 . 3 Ballistic Cannon . | . . . . Launcher 1 | . . . 1 Special Weapon . | . . . . Impact Weapon . | . . . . Slashing Weapon . | . . . . Piercing Weapon . | . . . . Special Melee Weapon . | . . . . Unidentified Prototypes 1 | . . 1 . Parts Lost 12 | . . . 12 Power 2 | . . . 2 Propulsion 4 | . . . 4 Utility 2 | . . . 2 Weapon 4 | . . . 4 Highest Loss Streak 6 | . . . 6 To Critical Strikes . | . . . . Average Backups 5 | 2 4 6 4 Power . | . 1 1 . Propulsion . | . 1 1 . Utility 2 | . 1 1 2 Weapon 2 | . 1 3 1 Tool/Special . | . . . . Unused Backups 4 | . 1 . 3 Power 1 | . . . 1 Propulsion . | . . . . Utility 2 | . . . 2 Weapon 1 | . 1 . . Tool/Special . | . . . . Average Slot Usage (%) 84 | . 100 100 80 Engine 12 | . 14 14 12 Wheel 25 | . 28 28 24 Device 3 | . 14 14 . Storage 8 | . 14 14 7 Protection 5 | . . . 6 Energy Gun 9 | . 8 . 11 Ballistic Gun 18 | . 19 28 16 Peak Build Rating 18 | 7 9 18 18 Average Rating 11 | 5 7 16 11 On Entrance 8 | . 7 9 18 Avg Prop Armor Cover (%) 1 | . . . 1 Naked Turns . | . . . . Heaviest Build 30 | 14 17 17 30 Greatest Support 30 | 20 20 20 30 Greatest Overweight (x) 2 | . . . 2 Average Overweight (x) . | . . . . Largest Inventory Capacity 8 | 8 8 8 8 Average Capacity 6 | 7 8 8 6 Most Carried 8 | 4 7 8 8 Average Carried 5 | 2 4 7 5 Final Capacity 8 | 8 8 8 5 Final Carried 8 | 4 6 8 4 Class Distribution -------------------- 70% | Mutant 29% | Subdweller-Mutant Dominant Class ---------------- Mutant | -10/Materials Mutant | -10/Mines Mutant | -10/Subcaves Resources | -11 -10 -10 -10 ----------- Run | Yrd Mat Min Sub Matter Collected 738 | 219 . 51 468 Remotely . | . . . . Salvage Created 703 | 110 . . 593 Parts 52 | 12 . . 40 Haulers Intercepted . | . . . . Recyclers Shooed . | . . . . Parts Field Recycled . | . . . . Retrieved Matter . | . . . . Parts Self-Destructed 8 | . . . 8 Prevented . | . . . . Parts Restored . | . . . . Kills | -11 -10 -10 -10 ------- Run | Yrd Mat Min Sub Combat Hostiles Destroyed 11 | . . . 11 Guns 11 | . . . 11 Classes Destroyed 7 | 2 . . 5 Tunneler 3 | 3 . . . Recycler 1 | 1 . . . Grunt 2 | . . . 2 Sentry 1 | . . . 1 Artisan 2 | . . . 2 Cobbler 1 | . . . 1 Subdweller 8 | . . . 8 Best Kill Streak 3 | 3 . . 2 Combat Bots Only 2 | . . . 2 Max Kills in Single Turn 2 | 1 . . 2 Gunslinging 1 | . . . 1 Exploded . | . . . . Melee . | . . . . Uniques/NPCs Destroyed . | . . . . Combat | -11 -10 -10 -10 -------- Run | Yrd Mat Min Sub Hostile Shots Fired 93 | . . . 93 Missed 23 | . . . 23 Hits 70 | . . . 70 Projectile 70 | . . . 70 AOE 1 | . . . 1 Critical Strikes 1 | . . . 1 Damage Taken 1524 | . . . 1524 Core 253 | . . . 253 Absorbed by Shields . | . . . . Core Remaining (%) 100 | 100 . . . Volleys Fired 91 | 12 . . 79 Largest 2 | 2 . . 2 Hottest 110 | 70 . . 110 Shots Fired 169 | 24 . . 145 Gun 168 | 24 . . 144 Cannon . | . . . . Launcher 1 | . . . 1 Special . | . . . . Kinetic 86 | 12 . . 74 Thermal 82 | 12 . . 70 Explosive 1 | . . . 1 Electromagnetic . | . . . . Robot Hit Streak 12 | 10 . . 12 Robot Miss Streak 3 | 2 . . 3 Penetration Max . | . . . . Secondary Targets 2 | . . . 2 Max Gunslinging Chain 1 | . . . 1 Shots Hit Robots 89 | 18 . . 71 Core Hits 33 | 6 . . 27 Critical Kills 1 | . . . 1 Critical Parts Destroyed 1 | . . . 1 Critical Strikes 5 | . . . 5 Burn 3 | . . . 3 Destroy 2 | . . . 2 Melee Attacks . | . . . . Impact . | . . . . Slashing . | . . . . Piercing . | . . . . Sneak Attacks . | . . . . Combat Hostiles . | . . . . Follow-up Attacks . | . . . . Damage Inflicted 1152 | 191 . . 961 Guns 1149 | 191 . . 958 Cannons . | . . . . Explosions 3 | . . . 3 Melee . | . . . . Ramming . | . . . . Kinetic 481 | 67 . . 414 Thermal 668 | 124 . . 544 Explosive 3 | . . . 3 Electromagnetic . | . . . . Impact . | . . . . Slashing . | . . . . Piercing . | . . . . Highest Corruption . | . . . . Average Corruption . | . . . . Corruption Purged . | . . . . Corruption Blocked . | . . . . Overload Shots . | . . . . Overflow Damage 2 | . . . 2 Projectiles . | . . . . Explosions 2 | . . . 2 Melee . | . . . . Knockbacks . | . . . . Impact . | . . . . Kinetic . | . . . . Secondary . | . . . . Self-Inflicted Damage 31 | . . . 31 Shots 1 | . . . 1 Rammed . | . . . . Targets Rammed . | . . . . Kicked . | . . . . Crushed . | . . . . Highest Temperature 110 | 110 . . 14 Average Temperature 33 | 42 . . 7 Received Heat Transfer 258 | . . . 258 Siege Activations . | . . . . Martial Activations . | . . . . Shielding Activations . | . . . . Robots Disrupted . | . . . . Combat Hostiles . | . . . . Robots Corrupted . | . . . . Combat Hostiles . | . . . . Parts Fried . | . . . . Impact Corruptions . | . . . . Robots Melted . | . . . . Combat Hostiles . | . . . . Parts Melted 3 | . . . 3 Heat Transferred 1461 | 370 . . 1091 Parts Sabotaged . | . . . . Parts Stolen . | . . . . Parts Stripped . | . . . . Power Chain Reactions . | . . . . Alert | -11 -10 -10 -10 ------- Run | Yrd Mat Min Sub Maximum Alert Level . | . . . . Low Security (%) 100 | 100 100 100 . Level 1 . | . . . . Level 2 . | . . . . Level 3 . | . . . . Level 4 . | . . . . Level 5 . | . . . . High Security . | . . . . Max Security . | . . . . Peak Influence 7 | 5 7 . . Initial 3 | . 3 . . Average . | 2 1 . . Influence Increases 97 | 20 7 . 70 Destroy 0b10 Robot/C 60 | . . . 60 Destroy 0b10 Robot/NC 20 | 20 . . . Destroy Leader 10 | . . . 10 Successful Hack 7 | . 7 . . Influence Decreases 95 | 15 12 . 68 Entered New Map 2 | . 2 . . Time Decay 53 | 15 10 . 28 Lost Part 40 | . . . 40 Squads Dispatched . | . . . . Investigation . | . . . . Extermination . | . . . . Reinforcement . | . . . . Assault . | . . . . Garrison . | . . . . Intercept . | . . . . Searches Triggered . | . . . . Construction Impeded . | . . . . Haulers Reinforced . | . . . . Active Scanning Responses . | . . . . Cargo Convoy Interrupts . | . . . . Stealth | -11 -10 -10 -10 --------- Run | Yrd Mat Min Sub Distress Signals . | . . . . Communications Jammed . | . . . . Distress Signals . | . . . . Times Spotted 14 | . . . 14 Peak Tracking Total 3 | . . . 3 Tactical Retreats . | . . . . Traps | -11 -10 -10 -10 ------- Run | Yrd Mat Min Sub Traps Triggered 1 | . . . 1 Indirectly . | . . . . Trap Hack Attempts . | . . . . Triggered . | . . . . Disarmed . | . . . . Reprogrammed . | . . . . Reused . | . . . . Traps Extracted . | . . . . Installed . | . . . . Triggered . | . . . . Machines | -11 -10 -10 -10 ---------- Run | Yrd Mat Min Sub Machines Disabled 2 | . . . 2 Max in Single Turn 1 | . . . 1 Machines Repaired . | . . . . Machines Dismantled . | . . . . Machines Sabotaged . | . . . . Overloaded Fab Kills . | . . . . Hacking | -11 -10 -10 -10 --------- Run | Yrd Mat Min Sub Machines Accessed 2 | . 1 . 1 Terminals 1 | . 1 . . Fabricators . | . . . . Repair Stations . | . . . . Recycling Units . | . . . . Scanalyzers . | . . . . Garrison Access . | . . . . Total Hacks 13 | . 4 . 9 Successful 10 | . 1 . 9 Failed 3 | . 3 . . Catastrophic 1 | . 1 . . Database Lockouts . | . . . . Manual 1 | . 1 . . Terminals 4 | . 4 . . Fabricators . | . . . . Repair Stations . | . . . . Recycling Units . | . . . . Scanalyzers . | . . . . Garrison Access . | . . . . Terminal Hacks 10 | . 1 . 9 Record 8 | . . . 8 Surveillance Status 1 | . 1 . . Proto ID Catalog 1 | . . . 1 Fabricator Hacks . | . . . . Repair Station Hacks . | . . . . Recycling Unit Hacks . | . . . . Scanalyzer . | . . . . Garrison Access Hacks . | . . . . Unauthorized Hacks . | . . . . Terminals . | . . . . Fabricators . | . . . . Repair Stations . | . . . . Recycling Units . | . . . . Scanalyzers . | . . . . Garrison Access . | . . . . Data Cores Recovered . | . . . . Used . | . . . . Hacking Detections 1 | . 1 . . Full Trace Events . | . . . . Feedback Events . | . . . . Feedback Blocked . | . . . . Robot Schematics Acquired . | . . . . Robots Built . | . . . . Authchips . | . . . . Time . | . . . . Total Robot Build Rating . | . . . . Part Schematics Acquired . | . . . . Parts Built . | . . . . Authchips . | . . . . Time . | . . . . Total Part Build Rating . | . . . . Part Studies Acquired . | . . . . Parts Repaired . | . . . . Time . | . . . . Parts Recycled . | . . . . Recycled Matter . | . . . . Retrieved Matter . | . . . . Retrieved Components . | . . . . Parts Scanalyzed . | . . . . Part Schematics Acquired . | . . . . Parts Damaged . | . . . . Bothacking | -11 -10 -10 -10 ------------ Run | Yrd Mat Min Sub Used RIF Installer . | . . . . Robots Hacked . | . . . . Non-combat . | . . . . Combat . | . . . . Robot Hacks Applied . | . . . . Relay Couplers Released . | . . . . Fabnet Peak Effective % . | . . . . Robots Rewired . | . . . . Allies Hacked . | . . . . Hacks Repelled . | . . . . Allies | -11 -10 -10 -10 -------- Run | Yrd Mat Min Sub Total Allies . | . . . . Largest Group . | . . . . Highest-Rated Group . | . . . . Highest-Rated Ally . | . . . . Total Orders . | . . . . Ally Attacks . | . . . . Total Damage . | . . . . Kills . | . . . . Allies Corrupted . | . . . . Allies Melted . | . . . . Intel | -11 -10 -10 -10 ------- Run | Yrd Mat Min Sub Active Infowar (turns) 361 | 23 92 241 5 Sensors 209 | . . 204 5 Seismic 152 | 23 92 37 . Robot Analysis Total . | . . . . Derelict Logs Recovered 3 | . . 1 2 Drone Launches . | . . . . Drone Recoveries . | . . . . Exploration | -11 -10 -10 -10 ------------- Run | Yrd Mat Min Sub Turns Passed 1725 | 93 92 241 1299 Spaces Moved 1628 | 60 107 290 1171 Core 8 | 8 . . . Treads . | . . . . Legs . | . . . . Wheels 1620 | 52 107 290 1171 Hover . | . . . . Flight . | . . . . Fastest Speed 50 | 50 80 80 80 Average Speed 86 | 76 80 80 88 Slowest Speed 110 | 80 80 80 110 Overloaded Moves . | . . . . Propulsion Burnouts . | . . . . Robots Hopped . | . . . . Potential Cave-ins . | . . . . Cave-ins Triggered . | . . . . Exploration Rate (%) 29 | 4 20 55 38 Regions Visited 3 Branch Regions 2 Pre-discovered Areas 1 | . . . 1 Known Exits Taken . | . . . . Unknown Exits Taken 3 | 1 1 1 . Scrap Searched 4 | . . 1 3 Spaces Dug 3 | . . . 3 Terrain Destroyed 15 | . . . 15 Melee . | . . . . Projectile 4 | . . . 4 AOE 11 | . . . 11 Terrain Rammed . | . . . . Walls Destroyed . | . . . . Machines Disabled . | . . . . Actions | -11 -10 -10 -10 --------- Run | Yrd Mat Min Sub Total 1793 | 82 113 298 1300 Wait 24 | . . 7 17 Move 1625 | 59 106 289 1171 Hop . | . . . . Pick Up 11 | 4 3 1 3 Fast Attach 12 | 7 . . 5 Attach 6 | . . . 6 Detach 1 | . . . 1 Swap 10 | . 2 1 7 Drop 10 | . 2 . 8 Fire 91 | 12 . . 79 Melee . | . . . . Ram . | . . . . Kick . | . . . . Crush . | . . . . Escape Stasis . | . . . . Rewire . | . . . . Trap . | . . . . Miscellaneous 3 | . . . 3 Route ------- -11/Scrapyard -10/Materials -10/Mines (discovered 2 exits: [*Mat] / *Sub) -10/Subcaves (discovered 1 exit: [*Mat]) History --------- Turn | Location | Event 8 | -11/Scrapyard | Discovered new exit (range 16) 94 | -11/Scrapyard | Entered Materials 134 | -10/Materials | Discovered new exit (range 8) 186 | -10/Materials | Entered Mines 195 | -10/Mines | Found a Scrap Suit stashed away for nefarious purposes 196 | -10/Mines | Found Scrap Suit 221 | -10/Mines | Found a damaged Exp. Sensor Array with a note attached 223 | -10/Mines | Found Prototype Device 223 | -10/Mines | Identified Exp. Sensor Array 227 | -10/Mines | Learned 2 Materials zone layouts 301 | -10/Mines | Build established: Mutant 345 | -10/Mines | Discovered new exit (range 7) 377 | -10/Mines | Received a Rocket Launcher from a helpful Derelict 422 | -10/Mines | Discovered new exit (range 6) 427 | -10/Mines | Entered Subcaves 428 | -10/Subcaves | Approached by a straggling Scientist 432 | -10/Subcaves | Discovered new exit (range 11) 474 | -10/Subcaves | Ambushed by angry Subdweller bent on revenge 735 | -10/Subcaves | Learned location of Storage (-9) 908 | -10/Subcaves | Visited 4L-MR0's lab 1053 | -10/Subcaves | Core integrity fell below 50% 1065 | -10/Subcaves | Core integrity fell below 20% 1090 | -10/Subcaves | Lost 6 parts (1p2n3w) 1098 | -10/Subcaves | Learned Materials terminal intel 1287 | -10/Subcaves | A swath of the cavern ceiling suddenly collapsed 1592 | -10/Subcaves | Build established: Subdweller-Mutant 1712 | -10/Subcaves | Ambushed by Subdweller buried in earth 1712 | -10/Subcaves | Ambushed by Subdweller buried in earth 1712 | -10/Subcaves | Ambushed by Subdweller buried in earth 1726 | -10/Subcaves | Destroyed by A1-LYO(R) with Subdweller Laser Last Messages --------------- 01520_ Acquired 34 matter. 01598_ Testing Chamber breached. 01615_ 4L-MR0 cries out in pain. 01615_ 4L-MR0 destroyed. 01615_ Machine disabled. 01636_ Subatomizers dissect the Spk. Treads. 01672_ G-47 Trooper destroyed. 01672_ Switching to secondary target: G-34 Mercenary. 01672_ G-34 Mercenary destroyed. 01682_ Ion Engine fries itself beyond repair. 01687_ Aluminum Leg fries itself beyond repair. [Achievement: Do Not Disturb] 01712_ Mak. Laser destroyed. 01713_ 9J-ESO(R): "ARGHSUB!" 01713_ A1-LYO(R): "NAT20!" 01713_ TF-EU5(R): "NAT20!" 01716_ Wheel destroyed. 01722_ Scrap Shield destroyed. 01724_ Wheel destroyed. Map ----- +----------------------------------------------------+ | | | | | | | | | | | | | | | ?????????????????????????????????????????????????? | | ?????????????????????????????????????????????????? | | ?????????????????????????????????????????????????? | | ?????????????????????????????????????????????????? | | ?????????????????????????????????????????????????? | | ?????????????????????????????????????????????????? | | ?????????????????????????????????????????????????? | | ?????????????????????????????????????????????????? | | ?????????????????????????????????????????????????? | | ?????????????????????????????????????????????????? | | ?????????????????????????????????????????????????? | | ?????????????????????????????????????????????????? | | ?????????????????????????????????????????????????? | | ???????????????????#?????????????????????????????? | | ???????????????????# ?###?##?????????????????????? | | ????????????????????# # # ##????????????????????? | | ????????????????????#;;;;;;;#????????????????????? | | ????????????????????#; ;##???????????????????? | | ????????????????????# @R #???????????????????? | | ????????????????????# R R #???????????????????? | | ????????????????????#; ;;; #??????????????????? | | ????????????????????#; #######??????????????????? | | ????????????????????#; #???????????????????????? | | ????????????????????## #?????????#?????????????? | | ????????????????????# ##????????? ###??????????? | | ????????????????????# #########? #??###?????# | | ????????????????????## %## ## ### #?## ##??### | | ?????????????????????## ## #?# #?## = | | ?????????????????????## ## #### ### | | ?????????????????????#=% ## ## ## # | | ????????????????????## # ### | | ???????????????##???# ## | | ???????????????# ##?# # # ####### | | ???????????????# #?# ####### #?????# | | ????????????????# #### ###???###### #?????## | | ????????????????# # ##??????# #?##??? | | ????????????????# #??????## ## #??? | | ???????????????## ### ###??????# ###?? | | ??????????????## # ##????????# #? | | ??????????????# < #?????????# # | | ??????????????## #?????????# ### # | | ???????????????# ## #?????????# #?###?#### | | ???????????????##?### #?????????# ##???????## | +----------------------------------------------------+ Best States ------------- Heat Dissipation 25 Energy Generation 15 Energy Capacity 250 Matter Stores 300 Matter Capacity 300 Sight Range 16 Robot Scan Range 20 Terrain Scan Density 10 Armor Coverage 800 Evasion (%) 50 Item Schematics ----------------- None Robot Schematics ------------------ None Fabricated ------------ Nothing Repaired ---------- Nothing Studied --------- None Alien Tech Used ----------------- None Achievements -------------- Do Not Disturb Mistaken Identity Challenges ------------ None Game ------ Seed CoolingShockMonowheel Manual? 0 Play Time 00:18:33 Cumulative 45.8 hours Start 2026.05.03 @ 13:53:06 End 2026.05.03 @ 14:11:47 Sessions 1 Manual Loads 0 Difficulty Rogue Special Mode None Game No. 43 Rogue 43 Adventurer 0 Explorer 0 Win Type - Total 0 Types 0/0/0/0/0/0/0/0/0/0 Lore% 12 Gallery% 28 Achievement% 21 Wizard Run 0 Options --------- Layout 2 ASCII 0 Keyboard 1 Movement Vi Keybinds 0 Fullscreen 2 Font 24/Smallcaps Map View 50x44 Zoom Use 0% Tactical HUD 1 Map Filters NONE Filters NONE Steam 1 RUN: 0b8c55a0-5488-495c-854c-4aa569262fa8